bitfinex-derivatives/quotes_SOLF0:USTF0_20250105
["timestamp","ask_amount","ask_price","bid_price","bid_amount"]
[1736104616952,2.6,213.25,213.23,2.3454]
[1736104619753,7.4865913,213.27,213.25,2.3451]
[1736104626061,7.4865913,213.27,213.2,7.4865913]
[1736104626255,7.4865913,213.27,213.24,2.3453]
[1736104626768,7.4865913,213.27,213.2,7.4865913]
[1736104626769,2.66,213.29,213.25,2.3452]
[1736104630561,2.66,213.29,213.26,2.345]
[1736104636565,7.4865913,213.27,213.16,2.8659]
[1736104636865,7.4865913,213.27,213.2,7.4865913]
[1736104637559,7.4865913,213.27,213.22,2.3454]
[1736104637963,7.4865913,213.27,213.2,7.4865913]
[1736104639564,10.1465913,213.29,213.22,7.4865913]
[1736104639769,10.1465913,213.29,213.24,7.4865913]
[1736104640565,10.1465913,213.29,213.26,2.3451]
[1736104642770,2.66,213.29,213.24,7.4865913]
[1736104642969,2.66,213.29,213.27,2.345]
[1736104643768,2.66,213.29,213.24,7.4865913]
[1736104644067,2.66,213.33,213.26,7.4865913]
[1736104644270,2.66,213.33,213.2,2.66]
[1736104644474,2.66,213.33,213.29,2.3447]
[1736104644671,7.4865913,213.32,213.29,2.3447]
[1736104645667,7.4865913,213.32,213.27,2.3449]
[1736104646267,7.4865913,213.32,213.28,2.3448]
[1736104650372,10.1265913,213.32,213.28,2.3448]
[1736104653377,7.4865913,213.32,213.28,2.3448]
[1736104657282,2.64,213.33,213.26,7.4865913]
[1736104657479,7.4865913,213.32,213.26,7.4865913]
[1736104657776,7.4865913,213.32,213.28,2.3448]
[1736104659677,7.4865913,213.32,213.29,2.3447]
[1736104661076,7.4865913,213.3,213.23,98.00305735]
[1736104661284,7.4865913,213.26,213.23,98.00305735]
[1736104661672,7.4865913,213.24,213.23,98.00305735]
[1736104662772,7.4865913,213.24,213.2,2.3457]
[1736104663178,7.4865913,213.24,213.16,10.3524913]
[1736104664076,7.4865913,213.24,213.19,2.3459]
[1736104664276,7.4865913,213.22,213.16,100.90103877]
[1736104664483,10.1265913,213.22,213.16,100.90103877]
[1736104665981,7.4865913,213.2,213.16,98.03513877]
[1736104666779,7.4865913,213.18,213.16,98.03513877]
[1736104666986,7.4865913,213.18,213.13,6.40212751]
[1736104668584,7.4865913,213.18,213.14,2.3464]
[1736104670486,2.64,213.17,213.14,2.3464]
[1736104672383,2.9596,213.26,213.15,7.4865913]
[1736104672588,7.4865913,213.22,213.15,7.4865913]
[1736104673382,7.4865913,213.22,213.17,2.346]
[1736104678692,51.24,213.34,213.17,2.346]
[1736104678892,7.4865913,213.22,213.18,2.346]
[1736104679091,10.0865913,213.22,213.18,2.346]
[1736104679693,7.4865913,213.22,213.18,2.346]
[1736104679892,2.6,213.21,213.18,2.346]
[1736104681895,2.6,213.21,213.16,2.3461]
[1736104682096,2.6,213.21,213.15,7.4865913]
[1736104682487,2.6,213.21,213.18,2.346]
[1736104683395,2.6,213.21,213.15,7.4865913]
[1736104683595,2.6,213.21,213.17,2.3461]
[1736104684198,7.4865913,213.2,213.17,2.3461]
[1736104684393,7.4865913,213.18,213.15,2.3462]
[1736104685591,7.4865913,213.18,213.13,6.40212751]
[1736104685795,7.4865913,213.18,213.16,2.3461]
[1736104688402,7.4865913,213.18,213.13,6.40212751]
[1736104688602,7.4865913,213.16,213.13,6.40212751]
[1736104689002,10.0865913,213.16,213.13,6.40212751]
[1736104689901,7.4865913,213.14,213.13,6.40212751]
[1736104691301,10.0865913,213.16,213.13,6.40212751]
[1736104691903,2.6,213.16,213.13,6.40212751]
[1736104694202,2.6,213.16,213.14,2.3464]
[1736104694806,2.6,213.16,213.15,2.3463]
[1736104696200,2.6,213.16,213.13,6.40212751]
[1736104696394,2.6,213.16,213.13,8.74852751]
[1736104696598,2.6,213.16,213.13,6.40212751]
[1736104696802,2.6,213.16,213.14,2.3464]
[1736104699101,2.6,213.16,213.13,6.40212751]
[1736104699302,2.6,213.16,213.15,2.3463]
[1736104699506,2.6,213.18,213.13,6.40212751]
[1736104700006,2.6,213.18,213.16,2.3461]
[1736104701205,2.6,213.18,213.15,2.3463]
[1736104703006,7.4865913,213.17,213.13,6.40212751]
[1736104703203,7.4865913,213.14,213.11,93.89063894]
[1736104704105,7.4865913,213.14,213.09,4.3872]
[1736104704502,2.6,213.13,213.1,2.3468]
[1736104707215,7.4865913,213.12,213.1,2.3468]
[1736104708407,7.4865913,213.12,213.06,2.3472]
[1736104708614,7.4865913,213.09,213.04,1.4143]
[1736104709014,2.58,213.08,213.04,1.4143]
[1736104709510,2.58,213.08,213.07,2.3472]
[1736104715220,2.58,213.08,212.97,9.06233888]
[1736104715221,2.58,213.08,213.05,2.3474]
[1736104715421,7.4865913,213.06,213.05,2.3474]
[1736104721418,7.4865913,213.06,213.03,2.3475]
[1736104721722,2.58,213.08,213.03,2.3475]
[1736104721924,7.4865913,213.06,212.99,8.9562913]
[1736104722327,7.4865913,213.04,212.99,1.4697]
[1736104722925,7.4865913,213.04,213.03,2.3476]
[1736104723125,10.0665913,213.04,213.03,2.3476]
[1736104725226,10.0665913,213.04,213.02,2.3477]
[1736104729027,2.58,213.04,213.02,2.3477]
[1736104729224,10.0665913,213.04,213.02,2.3477]
[1736104732831,10.0665913,213.04,213.01,2.3478]
[1736104734133,2.58,213.03,213.01,2.3478]
[1736104737235,2.58,213.03,213.02,2.3477]
[1736104737439,55.7045,213.17,213.02,7.4865913]
[1736104737739,0.75879332,213.16,213.09,2.347]
[1736104737939,10.0865913,213.15,213.06,7.4865913]
[1736104738334,7.4865913,213.13,213.06,7.4865913]
[1736104739131,7.4865913,213.13,213.08,2.3471]
[1736104740141,7.4865913,213.11,213.04,7.4865913]
[1736104740335,7.4865913,213.09,213.06,2.3472]
[1736104740642,7.4865913,213.09,213.02,7.4865913]
[1736104741434,7.4865913,213.09,213.04,2.3474]
[1736104742040,7.4865913,213.09,213.05,2.3474]
[1736104744643,7.4865913,213.07,213.05,2.3474]
[1736104744843,7.4865913,213.07,212.99,1.4613]
[1736104745035,7.4865913,213.04,212.99,1.4613]
[1736104745237,7.4865913,213.02,212.99,1.4613]
[1736104745844,7.4865913,213.02,212.99,2.348]
[1736104748944,7.4865913,213.04,213.0,2.3479]
[1736104749644,8.86039636,213.15,213.02,2.3476]
[1736104749837,7.4865913,213.07,213.01,7.4865913]
[1736104750039,10.0865913,213.07,212.95,112.67932912]
[1736104750246,10.0865913,213.07,213.0,7.4865913]
[1736104751240,10.0865913,213.07,213.05,2.3473]
[1736104752554,10.0865913,213.07,213.0,7.4865913]
[1736104753554,10.0865913,213.07,213.03,2.3476]
[1736104755652,7.4865913,213.05,213.03,2.3476]
[1736104756453,7.4865913,213.05,212.98,7.4865913]
[1736104756657,7.4865913,213.05,213.01,2.3477]
[1736104756859,7.4865913,213.03,212.96,7.4865913]
[1736104758560,7.4865913,213.03,212.98,2.3482]
[1736104758955,7.4865913,213.03,212.96,7.4865913]
[1736104759157,7.4865913,213.05,212.98,7.4865913]
[1736104759759,2.6,213.04,212.99,2.348]
[1736104760061,2.6,213.04,212.98,7.4865913]
[1736104760457,7.4865913,213.03,212.95,112.67932912]
[1736104760758,7.4865913,213.03,212.96,7.4865913]
[1736104761758,7.4865913,213.03,212.98,2.3481]
[1736104762360,7.4865913,213.03,212.99,2.348]
[1736104763054,7.4865913,213.0,212.95,2.3485]
[1736104763253,10.0865913,212.99,212.95,2.3485]
[1736104763559,2.6,212.98,212.95,2.3485]
[1736104766067,7.4865913,212.97,212.9,7.4865913]
[1736104766259,7.4865913,212.97,212.89,1.4862]
[1736104766559,7.4865913,212.95,212.89,1.4862]
[1736104767257,7.4865913,212.95,212.91,2.3489]
[1736104767662,7.4865913,212.95,212.89,1.4862]
[1736104768763,7.4865913,212.93,212.89,1.4862]
[1736104769060,2.6,212.92,212.89,1.4862]
[1736104769462,2.6,212.92,212.91,2.3489]
[1736104771361,2.6,212.95,212.9,7.4865913]
[1736104771564,2.6,212.95,212.92,7.4865913]
[1736104772270,2.6,212.95,212.89,1.4862]
[1736104772465,2.6,212.95,212.94,2.3486]
[1736104777768,1.3864,213.07,212.98,2.3481]
[1736104777968,7.4865913,213.02,212.95,7.4865913]
[1736104778166,2.6,213.01,212.95,7.4865913]
[1736104778369,2.6,213.0,212.99,2.3481]
[1736104779268,7.4865913,213.03,213.0,2.3479]
[1736104779473,2.6,213.02,213.0,2.3479]
[1736104779975,2.6,213.02,212.97,7.4865913]
[1736104780174,2.6,213.02,213.01,2.3478]
[1736104780871,1.4589,213.08,213.02,2.3477]
[1736104781073,7.4865913,213.05,212.97,7.4865913]
[1736104781678,2.6,213.04,213.03,2.3476]
[1736104781975,51.3,213.15,212.99,7.4865913]
[1736104782167,7.4865913,213.06,213.04,2.3475]
[1736104782370,2.6,213.05,213.04,2.3475]
[1736104789772,2.6,213.05,213.02,2.3476]
[1736104789976,7.4865913,213.04,213.02,2.3476]
[1736104791774,7.4865913,213.04,213.03,2.3476]
[1736104792675,2.6,213.05,213.03,2.3476]
[1736104792867,2.6,213.05,213.04,2.3475]
[1736104797779,3.0098,213.14,212.99,7.4865913]
[1736104798085,7.4865913,213.07,213.05,2.3473]
[1736104798383,2.6,213.06,213.05,2.3473]
[1736104800284,10.0865913,213.06,213.05,2.3473]
[1736104804286,2.6,213.06,213.05,2.3473]
[1736104806388,2.6,213.06,213.04,2.3475]
[1736104806595,7.4865913,213.05,213.04,2.3475]
[1736104806888,7.4865913,213.05,213.03,2.3476]
[1736104810994,2.6,213.06,212.99,7.4865913]
[1736104811188,10.0865913,213.06,213.04,2.3475]
[1736104811689,2.6,213.06,213.05,2.3474]
[1736104812602,1.4861,213.14,213.06,2.3472]
[1736104812786,7.4865913,213.08,213.06,2.3472]
[1736104812985,2.6,213.07,213.06,2.3472]
[1736104815804,7.4865913,213.08,213.06,2.3472]
[1736104816005,2.6,213.07,213.06,2.3472]
[1736104818203,2.6,213.07,213.05,2.3474]
[1736104820206,7.4865913,213.06,213.05,2.3474]
[1736104823506,14.08,213.28,213.08,2.3471]
[1736104823713,7.4865913,213.1,213.08,2.3471]
[1736104823909,2.6,213.09,213.08,2.3471]
[1736104825212,2.6,213.09,213.0,2.8236]
[1736104825405,7.4865913,213.06,213.0,2.8236]
[1736104825806,2.6,213.05,213.0,2.8236]
[1736104826506,2.6,213.05,213.03,2.3475]
[1736104828013,2.6,213.05,213.0,2.8236]
[1736104828214,2.6,213.05,213.01,2.3478]
[1736104828412,7.4865913,213.04,213.0,2.8236]
[1736104829717,7.4865913,213.04,212.99,2.348]
[1736104829919,7.4865913,213.02,212.99,2.348]
[1736104830512,7.4865913,213.0,212.97,2.3483]
[1736104830718,2.6,212.99,212.97,2.3483]
[1736104831312,2.6,212.99,212.98,2.3482]
[1736104840022,1.5171,213.09,213.01,2.3477]
[1736104840321,7.4865913,213.06,212.98,7.4865913]
[1736104841623,7.4865913,213.06,213.02,2.3476]
[1736104842822,7.4865913,213.06,213.01,2.3478]
[1736104844323,7.4865913,213.04,213.01,2.3478]
[1736104844523,7.4865913,213.02,212.95,1.4469]
[1736104844724,2.6,213.01,212.95,1.4469]
[1736104846321,7.4865913,213.0,212.98,2.3481]
[1736104846620,7.4865913,213.0,212.95,1.4469]
[1736104846824,7.4865913,212.98,212.93,3.0031]
[1736104847025,7.4865913,212.98,212.95,2.3484]
[1736104847226,7.4865913,212.96,212.93,3.0031]
[1736104847425,2.6,212.95,212.89,15.44183018]
[1736104847625,2.6,212.95,212.89,8.9594913]
[1736104847821,7.4865913,212.94,212.88,2.8949]
[1736104848424,2.6,212.95,212.89,7.4865913]
[1736104849130,2.6,212.95,212.93,2.3487]
[1736104853128,7.4865913,212.98,212.93,2.3487]
[1736104853328,2.6,212.97,212.93,2.3487]
[1736104853936,2.6,212.97,212.91,2.3489]
[1736104854430,2.6,212.97,212.9,7.4865913]
[1736104855437,2.6,212.97,212.92,2.3488]
[1736104855836,2.6,212.96,212.92,7.4865913]
[1736104856039,7.4865913,213.01,212.96,2.3484]
[1736104856235,2.6,213.0,212.96,2.3484]
[1736104857134,7.4865913,213.03,212.97,2.3483]
[1736104857330,2.6,213.02,212.97,2.3483]
[1736104858839,2.6,213.02,212.98,2.3482]
[1736104859933,2.6,213.01,213.0,2.3479]
[1736104860137,2.8166,213.14,212.98,7.4865913]
[1736104860339,7.4865913,213.06,212.98,7.4865913]
[1736104860533,2.6,213.05,212.98,7.4865913]
[1736104861034,7.4865913,213.06,213.01,2.3478]
[1736104861239,1.3831,213.13,213.02,7.4865913]
[1736104861539,7.4865913,213.09,213.02,7.4865913]
[1736104862543,7.4865913,213.09,213.04,2.3474]
[1736104863336,2.6,213.08,213.04,2.3474]
[1736104864039,2.6,213.08,213.02,7.4865913]
[1736104864230,2.6,213.08,213.02,9.8341913]
[1736104864842,2.6,213.08,213.02,7.4865913]
[1736104865042,2.6,213.08,213.03,2.3476]
[1736104865239,2.6,213.07,213.03,2.3476]
[1736104865943,10.0865913,213.07,213.03,2.3476]
[1736104871049,2.6,213.07,213.02,7.4865913]
[1736104871245,2.6,213.07,213.05,2.3473]
[1736104872349,1.3831,213.18,213.05,2.3473]
[1736104872538,2.6,213.16,213.06,2.3473]
[1736104872749,7.4865913,213.1,213.06,2.3473]
[1736104873048,2.6,213.09,213.06,2.3473]
[1736104873248,2.6,213.09,213.02,7.4865913]
[1736104873450,7.4865913,213.08,213.04,2.3474]
[1736104873950,7.4865913,213.08,213.05,2.3473]
[1736104877044,7.4865913,213.08,213.06,2.3472]
[1736104879462,10.0865913,213.08,213.06,2.3472]
[1736104881652,10.0865913,213.08,213.02,7.4865913]
[1736104881653,10.0865913,213.08,213.05,2.3474]
[1736104882852,2.6,213.08,213.05,2.3473]
[1736104885454,2.6,213.08,213.07,2.3472]
[1736104885657,10.0865913,213.09,213.07,2.3472]
[1736104889164,2.6,213.09,213.07,2.3472]
[1736104889565,7.4865913,213.11,213.07,2.3472]
[1736104889768,2.6,213.1,213.07,2.3472]
[1736104892068,2.8412,213.16,213.04,7.4865913]
[1736104892273,7.4865913,213.13,213.06,7.4865913]
[1736104892773,7.4865913,213.13,213.09,2.3469]
[1736104894272,2.6,213.12,213.09,2.3469]
[1736104896076,7.4865913,213.11,213.09,2.3469]
[1736104903174,10.0865913,213.11,213.09,2.3469]
[1736104906079,2.6,213.11,213.1,2.3469]
[1736104906874,2.6,213.12,213.11,2.3467]
[1736104911482,7.4865913,213.15,213.12,2.3466]
[1736104911681,2.58,213.14,213.12,2.3466]
[1736104914483,17.67806183,213.23,213.12,2.3466]
[1736104914684,7.4865913,213.15,213.12,2.3466]
[1736104914994,2.58,213.14,213.12,2.3466]
[1736104915384,7.4865913,213.15,213.12,2.3466]
[1736104915583,2.58,213.14,213.12,2.3466]
[1736104917683,7.4865913,213.13,213.11,2.3467]
[1736104918787,7.4865913,213.13,213.05,3.0121]
[1736104918981,7.4865913,213.07,213.02,1.473]
[1736104919991,7.4865913,213.07,213.04,2.3475]
[1736104920882,7.4865913,213.05,213.03,2.3476]
[1736104921082,7.4865913,213.05,213.01,6.84404374]
[1736104921491,7.4865913,213.05,213.02,2.3477]
[1736104921883,2.58,213.08,213.02,2.3477]
[1736104922086,7.4865913,213.06,213.02,2.3477]
[1736104923193,7.4865913,213.06,213.01,6.84404374]
[1736104924096,7.4865913,213.06,213.01,9.19184374]
[1736104924393,7.4865913,213.04,213.01,9.19184374]
[1736104924597,2.58,213.03,213.01,6.84404374]
[1736104925190,2.58,213.03,213.0,2.3479]
[1736104929502,2.58,213.03,212.98,7.4865913]
[1736104929702,2.58,213.03,213.01,2.3478]
[1736104931900,2.58,213.03,213.02,2.3477]
[1736104932201,2.58,213.04,213.02,2.3477]
[1736104935503,10.0665913,213.04,212.98,7.4865913]
[1736104935900,7.4865913,213.02,212.96,1.5117]
[1736104936206,7.4865913,213.0,212.95,116.12779289]
[1736104936506,2.58,212.99,212.95,116.12779289]
[1736104937408,2.58,212.99,212.96,2.3484]
[1736104939406,2.58,212.99,212.97,2.3483]
[1736104942312,2.58,212.99,212.95,118.47619289]
[1736104942912,2.58,212.99,212.96,2.3484]
[1736104948321,2.58,212.99,212.95,116.12779289]
[1736104948615,2.58,212.99,212.98,2.3482]
[1736104951519,2.58,212.99,212.96,2.3483]
[1736104952025,7.4865913,212.98,212.95,116.12779289]
[1736104952225,7.4865913,212.96,212.89,2.9911]
[1736104953020,7.4865913,212.96,212.91,2.3489]
[1736104953221,7.4865913,212.94,212.91,2.3489]
[1736104953425,2.58,212.93,212.91,2.3489]
[1736104954624,2.58,212.93,212.92,2.3488]
[1736104960130,2.58,212.93,212.91,2.3489]
[1736104963323,2.58,212.92,212.91,2.3489]
[1736104973235,7.4865913,212.96,212.88,7.4865913]
[1736104973441,2.58,212.93,212.92,2.3488]
[1736104975740,2.9068,213.04,212.94,2.3486]
[1736104976036,7.4865913,212.98,212.94,2.3486]
[1736104976238,2.58,212.97,212.94,2.3486]
[1736104980534,2.58,212.97,212.9,7.4865913]
[1736104981532,2.58,212.97,212.93,2.3487]
[1736104981732,7.4865913,212.96,212.93,2.3487]
[1736104983240,7.4865913,212.96,212.9,7.4865913]
[1736104983438,7.4865913,212.94,212.9,2.349]
[1736104983838,7.4865913,212.94,212.87,7.4865913]
[1736104984436,7.4865913,212.94,212.89,2.3491]
[1736104988648,7.4865913,212.96,212.89,2.3491]
[1736104988844,7.4865913,212.96,212.91,2.3489]
[1736104989841,7.4865913,212.98,212.92,2.3487]
[1736104990049,2.58,212.95,212.92,2.3487]
[1736104995258,2.58,212.94,212.92,2.3487]
[1736104995856,2.58,212.94,212.91,2.3489]
[1736104996057,2.58,212.94,212.87,7.4865913]
[1736104997563,2.58,212.94,212.9,2.3491]
[1736104998952,2.58,212.94,212.91,2.3489]
[1736105003060,2.58,212.94,212.87,7.4865913]
[1736105003258,10.0665913,212.94,212.9,2.349]
[1736105004062,10.0665913,212.94,212.88,7.4865913]
[1736105004361,2.58,212.94,212.91,2.3489]
[1736105009466,10.0665913,212.94,212.9,2.349]
[1736105011964,10.0665913,212.94,212.91,2.3489]
[1736105014972,10.0665913,212.94,212.86,7.4865913]
[1736105015268,10.0665913,212.94,212.9,2.349]
[1736105015663,10.0665913,212.94,212.89,2.3492]
[1736105015870,7.4865913,212.92,212.86,6.48233888]
[1736105016268,7.4865913,212.92,212.87,2.3494]
[1736105016573,7.4865913,212.92,212.85,122.66942554]
[1736105016870,7.4865913,212.92,212.85,116.18708666]
[1736105017566,7.4865913,212.92,212.88,2.3493]
[1736105018269,7.4865913,212.92,212.85,123.67367796]
[1736105019468,7.4865913,212.92,212.87,2.3494]
[1736105020570,7.4865913,212.92,212.89,2.3492]
[1736105020776,7.4865913,212.93,212.86,7.4865913]
[1736105021366,2.58,212.94,212.86,7.4865913]
[1736105021574,2.58,212.94,212.9,7.4865913]
[1736105021876,2.58,212.94,212.91,2.3489]
[1736105024976,10.0665913,212.94,212.89,2.3491]
[1736105025180,7.4865913,212.92,212.89,2.3491]
[1736105025975,7.4865913,212.92,212.88,2.3493]
[1736105028383,2.58,212.94,212.85,116.18708666]
[1736105028683,2.58,212.94,212.89,7.4865913]
[1736105028883,2.58,212.96,212.91,7.4865913]
[1736105029784,2.58,212.96,212.93,2.3486]
[1736105031987,3.52435932,213.03,212.85,116.18708666]
[1736105032279,2.58,213.02,212.97,7.4865913]
[1736105032483,2.58,213.01,212.97,7.4865913]
[1736105032984,2.58,213.0,212.97,9.8347913]
[1736105033183,2.58,213.0,212.97,7.4865913]
[1736105034486,2.58,213.0,212.98,2.3481]
[1736105035184,7.4865913,213.04,212.98,2.3481]
[1736105035383,2.58,213.03,212.98,2.3481]
[1736105039188,2.58,213.02,212.98,2.3481]
[1736105042588,2.58,213.02,212.99,2.348]
[1736105043291,2.58,213.03,213.01,2.3478]
[1736105050701,2.58,213.03,212.99,2.348]
[1736105060099,7.4865913,213.02,212.89,11.01193888]
[1736105060303,7.4865913,213.02,212.95,7.4865913]
[1736105061002,7.4865913,213.02,212.94,123.61212895]
[1736105061402,7.4865913,213.02,212.97,2.3483]
[1736105063211,7.4865913,213.02,212.98,2.3482]
[1736105068507,2.58,213.03,212.96,7.4865913]
[1736105068709,2.58,213.03,212.99,2.348]
[1736105070312,2.58,213.03,212.98,7.4865913]
[1736105070506,2.58,213.03,213.0,2.3479]
[1736105071511,2.58,213.04,213.02,2.3477]
[1736105071709,2.58,213.05,213.02,2.3477]
[1736105073111,7.4865913,213.07,213.02,2.3477]
[1736105073310,2.58,213.06,213.02,2.3477]
[1736105076812,7.4865913,213.07,213.02,2.3477]
[1736105077007,2.58,213.06,213.02,2.3477]
[1736105077707,11.10048178,213.13,213.02,7.4865913]
[1736105078012,7.4865913,213.11,213.04,7.4865913]
[1736105078213,2.58,213.1,213.04,7.4865913]
[1736105078414,7.4865913,213.11,213.05,2.3474]
[1736105078714,2.58,213.1,213.05,2.3474]
[1736105080512,7.4865913,213.09,213.05,2.3474]
[1736105081515,7.4865913,213.07,213.02,9.8341913]
[1736105081916,7.4865913,213.07,213.02,2.3476]
[1736105082122,2.58,213.1,213.03,2.3476]
[1736105082316,7.4865913,213.07,213.03,2.3476]
[1736105088020,7.4865913,213.07,213.01,7.4865913]
[1736105088324,7.4865913,213.07,213.04,2.3475]
[1736105100838,7.4865913,213.07,213.05,2.3474]
[1736105102144,7.4865913,213.07,212.97,4.2921]
[1736105102343,7.4865913,213.04,212.97,4.2921]
[1736105102644,7.4865913,213.04,212.98,7.4865913]
[1736105102645,10.0665913,213.04,212.98,7.4865913]
[1736105103043,10.0665913,213.04,213.02,2.3477]
[1736105103244,10.0665913,213.04,212.97,2.8038]
[1736105103444,7.4865913,213.01,212.98,2.3482]
[1736105105045,7.4865913,213.01,212.99,2.3481]
[1736105105447,7.4865913,213.03,212.99,2.3481]
[1736105106243,7.4865913,213.03,212.92,9.37113888]
[1736105106449,7.4865913,212.99,212.92,28.81815554]
[1736105106644,7.4865913,212.97,212.92,28.81815554]
[1736105107446,7.4865913,212.97,212.92,2.8888]
[1736105107851,7.4865913,212.97,212.94,2.3486]
[1736105108439,7.4865913,212.97,212.92,2.8888]
[1736105108440,7.4865913,212.97,212.95,2.3484]
[1736105108753,2.58,212.98,212.95,2.3484]
[1736105113442,1.3889,213.07,212.92,2.8888]
[1736105113751,10.0665913,213.06,212.97,7.4865913]
[1736105114453,7.4865913,213.04,212.95,2.3484]
[1736105114754,7.4865913,213.02,212.96,7.4865913]
[1736105115044,2.58,213.01,212.94,7.4865913]
[1736105116451,2.58,213.01,212.97,2.3482]
[1736105117552,2.58,213.01,212.98,2.3482]
[1736105118853,7.4865913,213.0,212.96,2.3483]
[1736105119749,7.4865913,212.98,212.95,2.3485]
[1736105120948,7.4865913,212.98,212.93,2.3486]
[1736105121853,7.4865913,212.98,212.94,2.3486]
[1736105122549,2.58,213.01,212.92,10.3753913]
[1736105122752,7.4865913,213.0,212.92,10.3753913]
[1736105123151,7.4865913,213.0,212.95,2.3484]
[1736105123845,2.58,212.99,212.96,2.3483]
[1736105124551,2.58,212.99,212.94,7.4865913]
[1736105124752,2.58,212.99,212.97,2.3483]
[1736105125457,2.58,212.99,212.98,2.3482]
[1736105127449,7.4865913,213.05,212.96,7.4865913]
[1736105127655,7.4865913,213.05,212.99,2.3481]
[1736105127656,2.58,213.03,212.99,2.3481]
[1736105130054,10.0665913,213.03,212.99,2.3481]
[1736105132355,10.0665913,213.03,212.98,2.3482]
[1736105134860,2.58,213.02,212.98,2.3482]
[1736105139168,2.58,213.01,212.98,2.3482]
[1736105145166,2.58,213.01,212.94,7.4865913]
[1736105146471,2.58,213.01,212.97,2.3483]
[1736105149273,2.58,213.01,212.96,7.4865913]
[1736105149574,2.58,213.01,212.98,2.3482]
[1736105151264,2.58,213.04,212.98,7.4865913]
[1736105151474,2.58,213.04,212.99,2.348]
[1736105152781,10.0665913,213.04,212.99,2.348]
[1736105153470,2.58,213.03,212.99,2.348]
[1736105155174,3.52324259,213.1,212.98,7.4865913]
[1736105155374,7.4865913,213.08,213.03,2.3476]
[1736105155774,2.58,213.07,213.03,2.3476]
[1736105156976,2.58,213.07,213.04,2.3475]
[1736105157381,2.58,213.09,213.06,2.3473]
[1736105160481,7.4865913,213.12,213.06,2.3473]
[1736105160778,2.58,213.09,213.05,2.3474]
[1736105160978,2.58,213.09,213.02,7.4865913]
[1736105161381,2.58,213.09,213.03,2.3476]
[1736105162375,3.52245041,213.16,213.06,2.3473]
[1736105162585,7.4865913,213.14,213.08,7.4865913]
[1736105162782,2.58,213.13,213.08,7.4865913]
[1736105163283,2.58,213.13,213.08,9.8335913]
[1736105166084,7.4865913,213.14,213.08,9.8335913]
[1736105166285,2.58,213.13,213.08,9.8335913]
[1736105167984,2.58,213.13,213.08,7.4865913]
[1736105168183,2.58,213.13,213.09,2.3469]
[1736105168482,2.58,213.13,213.1,7.4865913]
[1736105168675,7.4865913,213.18,213.1,7.4865913]
[1736105168879,2.58,213.17,213.1,7.4865913]
[1736105169077,2.58,213.16,213.1,7.4865913]
[1736105169281,2.58,213.16,213.11,2.3466]
[1736105169476,2.58,213.16,213.1,7.4865913]
[1736105169883,2.58,213.16,213.13,2.3465]
[1736105175290,2.58,213.17,213.13,2.3465]
[1736105180202,7.4865913,213.14,212.98,4.2838]
[1736105180403,7.4865913,213.06,212.99,7.4865913]
[1736105180603,7.4865913,213.06,213.01,2.3478]
[1736105182600,7.4865913,213.06,213.02,2.3477]
[1736105183405,10.0665913,213.08,213.02,2.3477]
[1736105184900,7.4865913,213.06,213.02,2.3477]
[1736105190515,10.0665913,213.08,213.02,2.3477]
[1736105192314,10.0665913,213.08,212.98,4.2838]
[1736105192511,7.4865913,213.06,213.0,2.3479]
[1736105194617,7.4865913,213.06,213.01,2.3478]
[1736105197118,2.58,213.08,213.01,7.4865913]
[1736105197319,2.9472,213.13,213.03,7.4865913]
[1736105197619,7.4865913,213.11,213.03,7.4865913]
[1736105198020,7.4865913,213.11,213.08,2.347]
[1736105199220,2.6,213.1,213.05,7.4865913]
[1736105199415,2.6,213.1,213.07,2.3472]
[1736105201320,2.6,213.1,213.05,9.8338913]
[1736105201520,2.6,213.1,213.05,2.3473]
[1736105202020,2.6,213.1,213.06,2.3473]